Cogmind - Beta 17 @@@ ROGUE MODE // 2026.07.30 @ 10:35:47 Player: aperiodic Result: Destroyed by X3-CRU(j) with Overtuned Pulse Rifle Performance ------------- Evolutions (0) 0 Regions Visited (3) 600 Robots Destroyed (24) 120 Value Destroyed (497) 497 Prototype IDs (51) 1020 Alien Tech Used (0) 0 Bonus (800) 800 TOTAL SCORE: 3037 Bonus ------- Registered with UFD 300 Met Optimus in HQ 500 Cogmind --------- Core Integrity 0/250 Matter 300/300 Energy 350/350 System Corruption 0% Temperature Cool (13) Movement Flying (100) Ox1 Location -8/Scraptown Parts ------- > --- POWER (1) -------- Enhanced Fission Core (fused) > --- PROPULSION (2) --- Improved Diametric Drive (fused) > --- UTILITY (2) ------ Experimental Hacking Suite (fused) > --- WEAPON (2) ------- (None) > --- INVENTORY (5) ---- VTOL Module Advanced Signal Interpreter Improved Reaction Control System Thermal Lance Peak State ------------ > --- POWER ------------ Enhanced Fission Core > --- PROPULSION ------- Cooled Nuclear Pulse Thruster Improved Diametric Drive > --- UTILITY ---------- Experimental Hacking Suite Self-contained Transmogrifier > --- WEAPON ----------- Heavy Shock Bomb Launcher Scatter Rocket Array > --- INVENTORY -------- Subdweller Power Source Subdweller Laser Subdweller Beam Cannon Subdweller Beam Cannon Subdweller Shrapnel Launcher [Rating: 53] Favorites ----------- Power Light Ion Engine Engine Light Ion Engine Power Core Enhanced Fission Core Reactor Cold Fusion Reactor Propulsion Subdweller Monowheel Treads Light Treads Wheel Subdweller Monowheel Hover Unit Improved Hover Unit Flight Unit Improved Diametric Drive Utility Self-contained Transmogrifier Device Self-contained Transmogrifier Storage High-capacity Storage Unit Processor Experimental Terrain Scan Processor Hackware Makeshift System Shield Protection Light Armor Plating Weapon Subdweller Beam Cannon Energy Gun Medium Laser Energy Cannon Subdweller Beam Cannon Ballistic Gun Assault Rifle Ballistic Cannon Antimatter Cannon Launcher Heavy Rocket Launcher Special Weapon CPS Tube Slashing Weapon Falx Build | -11 -10 -10 -8 ------- Run | Yrd Mat Sub Scr Slots Evolved . | . . . . Power . | . . . . Propulsion . | . . . . Utility . | . . . . Weapon . | . . . . Parts Attached 37 | 9 2 17 9 Power 3 | 1 . 1 1 Engine 2 | 1 . 1 . Core 1 | . . . 1 Reactor . | . . . . Propulsion 8 | 2 . 6 . Treads 2 | . . 2 . Leg . | . . . . Wheel 6 | 2 . 4 . Hover . | . . . . Flight . | . . . . Utility 9 | 3 1 2 3 Device 4 | 2 . . 2 Storage 4 | 1 1 1 1 Processor . | . . . . Hackware . | . . . . Protection 1 | . . 1 . Artifact . | . . . . Weapon 17 | 3 1 8 5 Energy Gun 4 | 2 . 1 1 Energy Cannon 5 | . . 5 . Ballistic Gun 2 | 1 . 1 . Ballistic Cannon . | . . . . Launcher 2 | . 1 1 . Special Weapon 2 | . . . 2 Impact Weapon . | . . . . Slashing Weapon 2 | . . . 2 Piercing Weapon . | . . . . Special Melee Weapon . | . . . . Unidentified Prototypes 2 | . . . 2 Parts Lost 7 | . . 6 1 Power 1 | . . 1 . Propulsion 4 | . . 3 1 Utility . | . . . . Weapon 2 | . . 2 . Highest Loss Streak 5 | . . 5 1 To Critical Strikes . | . . . . Average Backups 6 | 3 13 10 5 Power . | . 1 . . Propulsion . | 1 3 1 . Utility 1 | . 1 2 . Weapon 3 | 1 6 4 3 Tool/Special . | . . . . Unused Backups 38 | 1 4 13 20 Power 2 | . . 1 1 Propulsion 5 | . 1 1 3 Utility 9 | . . 1 8 Weapon 20 | 1 3 10 6 Tool/Special 2 | . . . 2 Average Slot Usage (%) 88 | . 100 90 86 Engine 4 | . 14 9 2 Core 4 | . . . 5 Reactor 2 | . . . 4 Treads 2 | . . 8 . Wheel 8 | . 28 17 4 Hover 8 | . . . 12 Flight 5 | . . . 7 Device 12 | . 14 14 12 Storage 3 | . 14 7 2 Processor 2 | . . . 3 Hackware 2 | . . . 3 Protection 4 | . . 4 4 Energy Gun 2 | . 14 1 2 Energy Cannon 5 | . . 19 . Ballistic Gun 2 | . 13 4 1 Launcher 4 | . . 3 5 Slashing Weapon 8 | . . . 11 Peak Build Rating 53 | 7 8 16 53 Average Rating 26 | 5 7 11 34 On Entrance 7 | . 7 8 16 Avg Prop Armor Cover (%) 10 | . . 11 10 Naked Turns 615 | . . . 615 Heaviest Build 60 | 13 28 60 60 Greatest Support 36 | 26 26 36 20 Greatest Overweight (x) 14 | . 1 3 14 Average Overweight (x) 1 | . . 1 2 Largest Inventory Capacity 20 | 8 15 20 20 Average Capacity 8 | 7 14 12 6 Most Carried 20 | 6 15 20 20 Average Carried 7 | 3 13 11 5 Final Capacity 20 | 8 15 20 5 Final Carried 20 | 6 15 20 4 Transmogrified Parts 97 | . . . 97 Integrity Recovered 369 | . . . 369 Class Distribution -------------------- 95% | Mutant 3% | Scavenger-Mutant Dominant Class ---------------- Mutant | -10/Materials Mutant | -10/Subcaves Mutant | -8/Scraptown Resources | -11 -10 -10 -8 ----------- Run | Yrd Mat Sub Scr Matter Collected 764 | 314 64 266 120 Remotely 84 | 84 . . . Salvage Created 730 | 154 90 486 . Parts 47 | 10 9 28 . Haulers Intercepted 1 | . 1 . . Recyclers Shooed . | . . . . Parts Field Recycled . | . . . . Retrieved Matter . | . . . . Parts Self-Destructed 18 | . . 18 . Prevented . | . . . . Parts Restored . | . . . . Kills | -11 -10 -10 -8 ------- Run | Yrd Mat Sub Scr Combat Hostiles Destroyed 17 | . 3 14 . Guns 5 | . . 5 . Cannons 6 | . . 6 . AOE 6 | . 3 3 . Classes Destroyed 7 | 2 3 2 . Tunneler 4 | 4 . . . Hauler 1 | . 1 . . Recycler 1 | 1 . . . Watcher 1 | . 1 . . Swarmer 8 | . 3 5 . Sentry 1 | . . 1 . Subdweller 8 | . . 8 . Best Kill Streak 4 | 4 3 3 . Combat Bots Only 3 | . 3 3 . Max Kills in Single Turn 3 | 1 3 2 . Gunslinging . | . . . . Exploded 3 | . 3 2 . Melee . | . . . . Uniques/NPCs Destroyed . | . . . . Combat | -11 -10 -10 -8 -------- Run | Yrd Mat Sub Scr Hostile Shots Fired 74 | . 2 62 10 Missed 16 | . 1 12 3 Hits 58 | . 1 50 7 Melee 1 | . . . 1 Projectile 57 | . 1 50 6 Critical Strikes 1 | . . 1 . Damage Taken 1194 | . 24 910 260 Core 265 | . . 196 69 Absorbed by Shields . | . . . . Core Remaining (%) 100 | 100 . . . Volleys Fired 70 | 8 9 52 1 Largest 2 | 2 2 2 1 Hottest 160 | 70 70 160 80 Shots Fired 111 | 16 17 77 1 Gun 62 | 16 16 29 1 Cannon 45 | . . 45 . Launcher 4 | . 1 3 . Special . | . . . . Kinetic 34 | 8 8 18 . Thermal 76 | 8 8 59 1 Explosive 1 | . 1 . . Electromagnetic . | . . . . Robot Hit Streak 25 | 4 7 25 . Robot Miss Streak 3 | 2 3 3 . Penetration Max . | . . . . Secondary Targets . | . . . . Shots Hit Robots 75 | 9 13 53 . Core Hits 30 | 6 6 18 . Critical Kills . | . . . . Critical Parts Destroyed . | . . . . Critical Strikes 1 | . . 1 . Burn 1 | . . 1 . Melee Attacks . | . . . . Impact . | . . . . Slashing . | . . . . Piercing . | . . . . Sneak Attacks . | . . . . Combat Hostiles . | . . . . Follow-up Attacks . | . . . . Damage Inflicted 1595 | 109 298 1188 . Guns 633 | 109 155 369 . Cannons 664 | . . 664 . Explosions 298 | . 143 155 . Melee . | . . . . Ramming . | . . . . Kinetic 484 | 48 78 358 . Thermal 968 | 61 77 830 . Explosive 143 | . 143 . . Electromagnetic . | . . . . Impact . | . . . . Slashing . | . . . . Piercing . | . . . . Highest Corruption . | . . . . Average Corruption . | . . . . Corruption Purged . | . . . . Corruption Blocked . | . . . . Overload Shots . | . . . . Overflow Damage . | . . . . Projectiles . | . . . . Explosions . | . . . . Melee . | . . . . Knockbacks . | . . . . Impact . | . . . . Kinetic . | . . . . Secondary . | . . . . Self-Inflicted Damage 44 | . 18 26 . Shots 2 | . 1 1 . Rammed . | . . . . Targets Rammed . | . . . . Kicked . | . . . . Crushed . | . . . . Highest Temperature 117 | 56 27 117 66 Average Temperature 29 | 22 12 43 29 Received Heat Transfer 129 | . . 69 60 Siege Activations . | . . . . Martial Activations . | . . . . Shielding Activations . | . . . . Robots Disrupted . | . . . . Combat Hostiles . | . . . . Robots Corrupted . | . . . . Combat Hostiles . | . . . . Parts Fried . | . . . . Impact Corruptions . | . . . . Robots Melted . | . . . . Combat Hostiles . | . . . . Parts Melted 2 | 1 . 1 . Heat Transferred 1961 | 185 222 1554 . Parts Sabotaged . | . . . . Parts Stolen . | . . . . Parts Stripped . | . . . . Power Chain Reactions . | . . . . Alert | -11 -10 -10 -8 ------- Run | Yrd Mat Sub Scr Maximum Alert Level . | . . . . Low Security (%) 100 | 100 100 . . Level 1 . | . . . . Level 2 . | . . . . Level 3 . | . . . . Level 4 . | . . . . Level 5 . | . . . . High Security . | . . . . Max Security . | . . . . Peak Influence 80 | 10 80 . . Initial . | . . . . Average 10 | 2 11 . . Influence Increases 264 | 25 109 130 . Destroy 0b10 Robot/C 180 | . 60 120 . Destroy 0b10 Robot/NC 35 | 25 10 . . Destroy Leader 24 | . 14 10 . Destroy Structure 10 | . 10 . . Partial Spotted 15 | . 15 . . Influence Decreases 264 | 25 109 130 . Time Decay 264 | 25 109 130 . Squads Dispatched 1 | . 1 . . Investigation 1 | . 1 . . Extermination . | . . . . Reinforcement . | . . . . Assault . | . . . . Garrison . | . . . . Intercept . | . . . . Searches Triggered . | . . . . Construction Impeded . | . . . . Haulers Reinforced . | . . . . Active Scanning Responses . | . . . . Cargo Convoy Interrupts . | . . . . Stealth | -11 -10 -10 -8 --------- Run | Yrd Mat Sub Scr Distress Signals . | . . . . Communications Jammed . | . . . . Distress Signals . | . . . . Times Spotted 37 | . 7 14 16 Peak Tracking Total 5 | . 3 3 5 Tactical Retreats . | . . . . Traps | -11 -10 -10 -8 ------- Run | Yrd Mat Sub Scr Traps Triggered 1 | . 1 . . Indirectly . | . . . . Trap Hack Attempts . | . . . . Triggered . | . . . . Disarmed . | . . . . Reprogrammed . | . . . . Reused 1 | . . . 1 Traps Extracted . | . . . . Installed 1 | . . . 1 Triggered . | . . . . Most Traps Carried 1 | . . 1 1 Machines | -11 -10 -10 -8 ---------- Run | Yrd Mat Sub Scr Machines Disabled 2 | . . 1 1 Max in Single Turn 1 | . . 1 1 Machines Repaired . | . . . . Machines Dismantled . | . . . . Machines Sabotaged . | . . . . Overloaded Fab Kills . | . . . . Hacking | -11 -10 -10 -8 --------- Run | Yrd Mat Sub Scr Machines Accessed 5 | . . 1 4 Terminals . | . . . . Fabricators . | . . . . Repair Stations . | . . . . Recycling Units . | . . . . Scanalyzers . | . . . . Garrison Access . | . . . . Total Hacks 15 | . . 1 14 Successful 15 | . . 1 14 Failed . | . . . . Catastrophic . | . . . . Database Lockouts . | . . . . Manual . | . . . . Terminals . | . . . . Fabricators . | . . . . Repair Stations . | . . . . Recycling Units . | . . . . Scanalyzers . | . . . . Garrison Access . | . . . . Terminal Hacks 15 | . . 1 14 Record 13 | . . . 13 Proto ID Catalog 2 | . . 1 1 Fabricator Hacks . | . . . . Repair Station Hacks . | . . . . Recycling Unit Hacks . | . . . . Scanalyzer . | . . . . Garrison Access Hacks . | . . . . Unauthorized Hacks . | . . . . Terminals . | . . . . Fabricators . | . . . . Repair Stations . | . . . . Recycling Units . | . . . . Scanalyzers . | . . . . Garrison Access . | . . . . Data Cores Recovered . | . . . . Used . | . . . . Hacking Detections . | . . . . Full Trace Events . | . . . . Feedback Events . | . . . . Feedback Blocked . | . . . . Robot Schematics Acquired . | . . . . Robots Built . | . . . . Authchips . | . . . . Time . | . . . . Total Robot Build Rating . | . . . . Part Schematics Acquired . | . . . . Parts Built . | . . . . Authchips . | . . . . Time . | . . . . Total Part Build Rating . | . . . . Part Studies Acquired . | . . . . Parts Repaired . | . . . . Time . | . . . . Parts Recycled . | . . . . Recycled Matter . | . . . . Retrieved Matter . | . . . . Retrieved Components . | . . . . Parts Scanalyzed . | . . . . Part Schematics Acquired . | . . . . Parts Damaged . | . . . . Bothacking | -11 -10 -10 -8 ------------ Run | Yrd Mat Sub Scr Used RIF Installer . | . . . . Robots Hacked . | . . . . Non-combat . | . . . . Combat . | . . . . Robot Hacks Applied . | . . . . Relay Couplers Released . | . . . . Fabnet Peak Effective % . | . . . . Robots Rewired . | . . . . Allies Hacked . | . . . . Hacks Repelled . | . . . . Allies | -11 -10 -10 -8 -------- Run | Yrd Mat Sub Scr Total Allies . | . . . . Largest Group . | . . . . Highest-Rated Group . | . . . . Highest-Rated Ally . | . . . . Total Orders . | . . . . Ally Attacks . | . . . . Total Damage . | . . . . Kills . | . . . . Allies Corrupted . | . . . . Allies Melted 1 | . . . 1 Intel | -11 -10 -10 -8 ------- Run | Yrd Mat Sub Scr Active Infowar (turns) 4421 | 11 596 3489 325 Seismic 4421 | 11 596 3489 325 Robot Analysis Total . | . . . . Derelict Logs Recovered 6 | . . 1 5 Drone Launches . | . . . . Drone Recoveries . | . . . . Exploration | -11 -10 -10 -8 ------------- Run | Yrd Mat Sub Scr Turns Passed 13471 | 130 596 3489 9256 Spaces Moved 8555 | 87 445 2608 5415 Core 2659 | 2 . 117 2540 Treads 55 | . . 55 . Legs . | . . . . Wheels 3698 | 85 445 2436 732 Hover 913 | . . . 913 Flight 1230 | . . . 1230 Fastest Speed 29 | 50 90 50 29 Average Speed 150 | 88 102 121 169 Slowest Speed 750 | 90 105 320 750 Overloaded Moves . | . . . . Propulsion Burnouts . | . . . . Robots Hopped . | . . . . Potential Cave-ins . | . . . . Cave-ins Triggered . | . . . . Exploration Rate (%) 61 | 4 78 75 90 Regions Visited 3 Branch Regions 2 Pre-discovered Areas 4 | . . 2 2 Known Exits Taken . | . . . . Unknown Exits Taken 3 | 1 1 1 . Scrap Searched 15 | . . 8 7 Spaces Dug . | . . . . Terrain Destroyed 37 | . 9 28 . Melee . | . . . . Projectile 1 | . . 1 . AOE 36 | . 9 27 . Terrain Rammed . | . . . . Walls Destroyed . | . . . . Machines Disabled . | . . . . Actions | -11 -10 -10 -8 --------- Run | Yrd Mat Sub Scr Total 9031 | 120 569 2856 5486 Wait 230 | 8 91 128 3 Move 8552 | 86 444 2607 5415 Hop . | . . . . Pick Up 77 | 7 15 30 25 Fast Attach 25 | 8 . 8 9 Attach 5 | . . 2 3 Detach 1 | . . . 1 Swap 13 | 1 3 9 . Drop 57 | 2 7 20 28 Fire 70 | 8 9 52 1 Melee . | . . . . Ram . | . . . . Kick . | . . . . Crush . | . . . . Escape Stasis . | . . . . Rewire . | . . . . Trap 1 | . . . 1 Miscellaneous . | . . . . Route ------- -11/Scrapyard -10/Materials (discovered 5 exits: [*Mat x2] / [*Min x2] / *Sub) -10/Subcaves (discovered 2 exits: [*Mat] / *Scr) -8/Scraptown (discovered 2 exits: [*Fac x2]) History --------- Turn | Location | Event 28 | -11/Scrapyard | Discovered new exit (range 14) 131 | -11/Scrapyard | Entered Materials 263 | -10/Materials | Discovered new exit (range 7) 287 | -10/Materials | Discovered new exit (range 4) 313 | -10/Materials | Build established: Mutant 580 | -10/Materials | Discovered new exit (range 12) 670 | -10/Materials | Discovered new exit (range 15) 722 | -10/Materials | Discovered new exit (range 5) 727 | -10/Materials | Entered Subcaves 728 | -10/Subcaves | Approached by a straggling Scientist 795 | -10/Subcaves | Shifting Twisted Machinery released Sub. Laser 817 | -10/Subcaves | Shifting Twisted Machinery released Shrapnel Trap 962 | -10/Subcaves | Core integrity fell below 50% 986 | -10/Subcaves | Lost 5 parts (1p2n2w) 1323 | -10/Subcaves | Scientist uncovered a shortcut to Scraptown 1473 | -10/Subcaves | Shifting Twisted Machinery released Multitool 1474 | -10/Subcaves | Shifting Twisted Machinery released Sub. Monowheel 1511 | -10/Subcaves | A swath of the cavern ceiling suddenly collapsed 1534 | -10/Subcaves | A swath of the cavern ceiling suddenly collapsed 1560 | -10/Subcaves | Build established: Scavenger-Mutant 1566 | -10/Subcaves | Learned location of Zion (-7) 1566 | -10/Subcaves | Met a Zionite searching for "candidates" 1862 | -10/Subcaves | Disturbed a concealed Subdweller 2022 | -10/Subcaves | Shifting Twisted Machinery released Battle Rifle 2055 | -10/Subcaves | Shifting Twisted Machinery released Sub. Beam Cannon 2082 | -10/Subcaves | Learned location of Storage (-8) 2083 | -10/Subcaves | Build established: Mutant 2264 | -10/Subcaves | Visited 4L-MR0's lab 2918 | -10/Subcaves | Discovered new exit (range 13) 3486 | -10/Subcaves | Found Prototype Device 3493 | -10/Subcaves | Found Arachnoskeleton 3851 | -10/Subcaves | Disturbed a concealed Subdweller 4216 | -10/Subcaves | Entered Scraptown 4402 | -8/Scraptown | Visited Bundlers 4496 | -8/Scraptown | Visited Cyclists 4517 | -8/Scraptown | Visited UFD Registry 4517 | -8/Scraptown | Registered with UFD as "Bulletbot" 4562 | -8/Scraptown | Visited Junk Cannon Lab 4570 | -8/Scraptown | Visited Abandonware Association 4576 | -8/Scraptown | Learned abandonware demo "REVENGE.EXE" 4576 | -8/Scraptown | Learned abandonware demo "MELTYB.EXE" 4587 | -8/Scraptown | Visited Derelict Rescue Squad 4592 | -8/Scraptown | Visited Scrapoid Pod Storage 4600 | -8/Scraptown | Visited Infowarlord's Domain 4610 | -8/Scraptown | Visited Curators Association 4678 | -8/Scraptown | Visited Science Guys 4694 | -8/Scraptown | Visited Junk Repository 4711 | -8/Scraptown | Visited Scrapoid Research Area 4848 | -8/Scraptown | Heard Great Nut preacher, LISTEN AND RECITE! 4854 | -8/Scraptown | Learned location of Extension (-5) 4894 | -8/Scraptown | Visited CPS Storage 4898 | -8/Scraptown | Visited Red Mages 4930 | -8/Scraptown | Visited Comm Corps 4957 | -8/Scraptown | Discovered new exit (range 11) 5095 | -8/Scraptown | Entered Cyclist Reading Room 5286 | -8/Scraptown | Scanned Subdweller tech in exchange for log data 5291 | -8/Scraptown | Learned Factory emergency access door positions 5292 | -8/Scraptown | Learned Research stockpile data 5742 | -8/Scraptown | Identified Sfc. Transmogrifier 12781 | -8/Scraptown | Found Exp. Sensor Array 12812 | -8/Scraptown | Found DRS Beacon 12865 | -8/Scraptown | Found Prototype Special Weapon 12876 | -8/Scraptown | Identified Junk Cannon 13308 | -8/Scraptown | Met Optimus 13308 | -8/Scraptown | Accepted into 0bPrime 13360 | -8/Scraptown | Discovered new exit (range 5) 13406 | -8/Scraptown | Civil war broke out across Scraptown 13413 | -8/Scraptown | Core integrity fell below 20% 13440 | -8/Scraptown | Found Thermal Lance 13472 | -8/Scraptown | Lost 7 allies 13472 | -8/Scraptown | Destroyed by X3-CRU(j) with Overtuned Pulse Rifle Last Messages --------------- 13440_ Acquired Thermal Lance. 13443_ Dropped CPS Tube. 13443_ Acquired Vortex Trap. 13451_ Machine disabled. 13451_ XV-92B(j) suffers critical hit (Burn). 13452_ Acquired 30 matter. 13453_ Machine disabled. 13455_ XV-92B(j) suffers critical hit (Burn). 13456_ XV-92B(j) suffers critical hit (Destroy). 13456_ XV-92B(j) destroyed. 13462_ PL-SPQ(E) cannibalizes Ovr. Treads to repair Broken Ovr. Treads. 13465_ 2B-C5S(j) destroyed. 13469_ Dropped Vortex Trap. 13469_ Installed Vortex Trap. 13471_ V1-VLB(g) triggered Vortex Trap. 13471_ A wave of accelerated entropy washes over the area. 13471_ V1-VLB(g) destroyed. 13471_ Cld. Nuclear Pulse Thruster destroyed. Map ----- +----------------------------------------------------+ | | | | | ?????????????????????????????????????????????????? | | ?????????????????????????????????????????????????? | | ?????????????????????????????????????????????????? | | ?????????????????????????????????????????????????? | | ?????????????????????????????????????????????????? | | ?????????????????????????????????????????????????? | | ?????????????????????????????????????????????????? | | ?????????????????????????????????????????????????? | | ?????????????????????????????????????????????????? | | ?????????????????????????????????????????????????? | | ?????????????????????????????????????????????????? | | ????????????????????????????????#####????????????? | | ???????????????????????#######??#"""#????????????? | | ???????????#########?###;;; ####"["#????????????? | | ??????????#""|##"""#?#;; ;; ##=j%#????????????? | | ?????#"" ##"" ##!!"###; ;;;;##=%/##???????????? | | ??" j!%!]g!%[!#???????????? | | # [%=[!!=| #???????????? | | ??###################;; [!*; ;;/######???????????? | | ????????????????????# ;; ;; #????????????????? | | ?????#######????????# ; ;;;;;[####?????????????? | | ?????#""""""#????????# ; %; """#?????????????? | | ?????#""""""##########;; ; &" "#?????????????? | | ?????#" ""#"""""""""## @; ";#????????????? | | ?????#" ""# " " " ## #"" " ##????????????? | | ?????#" ""# #; #" ! "#?????????????? | | ?????#" ""# "# #" #;! #"" *% ##????????????? | | ?????#" "# "#X#" #!!%#"[! "#????????????? | | ##"###" """# "###" ##=!#" %* ""##????????????? | | # # """"" ##%!%= =[ = #?????????????? | | # # ##!E#=! =%=#?????????????? | | # # ## #!=! * #?????????????? | | ###### ########### ##### ##%[####"#?????????????? | | ###### ###########=##### #=!###?????????????????? | | """""" """" """"""*"! !" * "#######???????????? | | [!%= !%!%= [%= ##"""" #???????????? | | =%=! [[=! !*= ## "#???????????? | | [% ! ## "#???????????? | | /%! "## !"#???????????? | | [ "#???????????? | | """""""""" "" """" """ " !=%"## "#???????????? | | """"""""""""""""""""""" [%! "## "#???????????? | | #### ################"" [!! "##"""""#???????????? | | ##????????#"" ########???????????? | | X"#????????#"" "###########????????? | | "" "" ##????????#"" "## #????????? | | "" "" X"#??????###"" "## #????????? | | " " ######### #"" "## #????????? | +----------------------------------------------------+ Best States ------------- Heat Dissipation 25 Energy Generation 25 Energy Capacity 900 Matter Stores 300 Matter Capacity 300 Sight Range 16 Terrain Scan Density 1010 Power Amplification 20 Armor Coverage 400 Resistance: KI 20 Propulsion Shielding 90 Evasion (%) 64 Launcher Accuracy 30 Recoil Reduction 1 Salvage Targeting 2 Offensive Hacking 16 Defensive Hacking 11 Item Schematics ----------------- None Robot Schematics ------------------ None Fabricated ------------ Nothing Repaired ---------- Nothing Studied --------- None Alien Tech Used ----------------- None Achievements -------------- None Challenges ------------ None Game ------ Seed WeightSeismicJoltstriker Manual? 0 Play Time 01:03:43 Cumulative 784.1 hours Start 2026.07.30 @ 09:01:23 End 2026.07.30 @ 10:35:47 Sessions 3 Manual Loads 0 Difficulty Rogue Special Mode None Game No. 290 Rogue 286 Adventurer 4 Explorer 0 Win Type - Total 21 Types 9/2/6/0/0/0/2/2/0/0 Lore% 89 Gallery% 77 Achievement% 61 Wizard Run 0 Options --------- Layout 1 ASCII 0 Keyboard 0 Movement Numpad Keybinds 0 Fullscreen 1 Font 40/SmallcapsGlow Map View 50x40 Zoom Use 0% Tactical HUD 1 Map Filters NONE Filters NONE Steam 1 RUN: 7175ec3e-3e4e-4c8e-9233-a772883a1542